Cogmind - Beta 14 @@@ ROGUE MODE // 2024.12.08 @ 12:51:45 Player: K4-9ML(Z) Result: Destroyed by Enhanced Grunt with Neutron Cannon Performance ------------- Evolutions (3) 1500 Regions Visited (7) 1400 Robots Destroyed (51) 255 Value Destroyed (1869) 1869 Prototype IDs (1) 20 Alien Tech Used (0) 0 Bonus (328) 328 TOTAL SCORE: 5372 Bonus ------- High Alert Combat Kills 28 Met Data Miner 300 Cogmind --------- Core Integrity 0/700 Matter 104/300 Energy 150/150 System Corruption 2% Temperature Cool (0) Movement Core (200) Ox3 Location -7/Data Miner Parts ------- > --- POWER (1) -------- Micro Nuclear Core > --- PROPULSION (3) --- (None) > --- UTILITY (5) ------ (None) > --- WEAPON (4) ------- Chainsword (fused) Chainsword > --- INVENTORY (5) ---- Gauss Rifle Improved Datajack Peak State ------------ > --- POWER ------------ Improved Deuterium Engine > --- PROPULSION ------- Carbon-fiber Leg Carbon-fiber Leg > --- UTILITY ---------- Improved Signal Interpreter Recoil Stabilizer Hardened Medium Armor Plating > --- WEAPON ----------- Arc Projector Gatling Laser Enhanced Autogun Gauss Rifle > --- INVENTORY -------- Mini Grenade Launcher Improved Datajack [Rating: 35] Favorites ----------- Power Light Nuclear Core Engine Deuterium Engine Power Core Light Nuclear Core Propulsion Carbon-fiber Leg Treads Improved Treads Leg Carbon-fiber Leg Wheel Wheel Hover Unit Gravmag System Flight Unit Cesium-ion Thruster Utility Light Armor Plating Device Recoil Stabilizer Storage Small Storage Unit Processor Improved Signal Interpreter Protection Light Armor Plating Weapon Small Laser Energy Gun Small Laser Energy Cannon Ion Cannon Ballistic Gun Light Assault Rifle Ballistic Cannon Gauss Cannon Launcher Mini Grenade Launcher Slashing Weapon Chainsword Special Melee Weapon Improved Datajack Build | -11 -10 -9 -9 -8 -7 -7 -7 ------- Run | Yrd Mat Mat Min Mat Fac Low Dat Slots Evolved 6 | . . 2 . 2 2 . . Power . | . . . . . . . . Propulsion 1 | . . . . . 1 . . Utility 3 | . . 1 . 1 1 . . Weapon 2 | . . 1 . 1 . . . Parts Attached 73 | 6 6 14 1 23 23 . . Power 11 | 1 1 2 . 3 4 . . Engine 6 | 1 1 2 . 1 1 . . Core 5 | . . . . 2 3 . . Reactor . | . . . . . . . . Propulsion 16 | 2 3 4 . 6 1 . . Treads 2 | . . . . 2 . . . Leg 9 | 2 3 . . 4 . . . Wheel 2 | . . 2 . . . . . Hover 1 | . . . . . 1 . . Flight 2 | . . 2 . . . . . Utility 11 | 1 . 3 . 4 3 . . Device 2 | . . . . 1 1 . . Storage 1 | 1 . . . . . . . Processor 1 | . . . . . 1 . . Hackware . | . . . . . . . . Protection 7 | . . 3 . 3 1 . . Artifact . | . . . . . . . . Weapon 35 | 2 2 5 1 10 15 . . Energy Gun 8 | 1 2 1 . 1 3 . . Energy Cannon 3 | . . . . 2 1 . . Ballistic Gun 10 | 1 . 2 1 5 1 . . Ballistic Cannon 5 | . . . . . 5 . . Launcher 5 | . . 2 . 1 2 . . Special Weapon . | . . . . . . . . Impact Weapon . | . . . . . . . . Slashing Weapon 3 | . . . . . 3 . . Piercing Weapon . | . . . . . . . . Special Melee Weapon 1 | . . . . 1 . . . Unidentified Prototypes 1 | . . . . . 1 . . Parts Lost 25 | . 2 . . 6 16 . 1 Power 5 | . 1 . . . 4 . . Propulsion 4 | . . . . 1 2 . 1 Utility 7 | . . . . 3 4 . . Weapon 9 | . 1 . . 2 6 . . Highest Loss Streak 9 | . 1 . . 3 9 . 1 To Critical Strikes . | . . . . . . . . Average Slot Usage (%) 72 | . 77 86 99 79 61 30 30 Engine 5 | . 13 10 11 2 2 . . Core 3 | . . . . 6 3 7 7 Leg 9 | . 26 9 . 7 10 . . Wheel 4 | . . 2 22 4 . . . Flight 1 | . . 8 . . . . . Device 1 | . . . . 1 4 . . Storage 1 | . 14 4 . . . . . Processor 2 | . . . . . 5 . . Protection 13 | . . 19 33 17 6 . . Energy Gun 10 | . 12 22 22 9 4 . . Energy Cannon 2 | . . . . 6 2 . . Ballistic Gun 10 | . 9 4 10 17 11 . . Ballistic Cannon 1 | . . . . . 3 . . Slashing Weapon 2 | . . . . . 3 15 15 Peak Build Rating 35 | 6 6 18 14 21 35 16 16 Average Rating 17 | 4 5 12 12 17 25 16 15 On Entrance 11 | . 6 6 13 12 21 16 16 Naked Turns . | . . . . . . . . Heaviest Build 39 | 14 14 23 21 30 39 12 12 Greatest Support 46 | 20 20 20 20 46 30 9 9 Greatest Overweight (x) 12 | . 3 2 1 8 12 1 3 Average Overweight (x) . | . . . 1 . . 1 1 Largest Inventory Capacity 8 | 8 8 8 5 5 5 5 5 Average Capacity 5 | 6 8 6 5 5 5 5 5 Most Carried 5 | 3 4 5 5 5 5 2 2 Average Carried 2 | 1 1 3 2 3 2 2 2 Final Capacity 8 | 8 8 5 5 5 5 5 5 Final Carried 5 | 2 1 3 5 3 2 2 2 Class Distribution -------------------- 56% | Scavenger-Tank 22% | Mutant 13% | Tank 5% | Scavenger-Mutant Dominant Class ---------------- Mutant | -10/Materials Tank | -9/Materials Scavenger-Tank | -9/Mines Scavenger-Tank | -8/Materials Scavenger-Tank | -7/Factory Mutant | -7/Lower Caves Mutant | -7/Data Miner Resources | -11 -10 -9 -9 -8 -7 -7 -7 ----------- Run | Yrd Mat Mat Min Mat Fac Low Dat Matter Collected 1291 | 243 156 . 27 360 505 . . Remotely . | . . . . . . . . Salvage Created 1795 | . 286 198 27 583 701 . . Parts 106 | . 23 11 6 27 39 . . Haulers Intercepted . | . . . . . . . . Recyclers Shooed 2 | . . 1 . . 1 . . Parts Field Recycled . | . . . . . . . . Retrieved Matter . | . . . . . . . . Parts Self-Destructed . | . . . . . . . . Prevented . | . . . . . . . . Kills | -11 -10 -9 -9 -8 -7 -7 -7 ------- Run | Yrd Mat Mat Min Mat Fac Low Dat Combat Hostiles Destroyed 43 | . 7 3 4 11 18 . . Melee 3 | . . . . . 3 . . Guns 22 | . 7 2 1 8 4 . . Cannons 10 | . . . . 3 7 . . AOE 8 | . . 1 3 . 4 . . Classes Destroyed 10 | . 3 2 . 1 4 . . Worker 3 | . . 2 . . 1 . . Builder 3 | . . . . . 3 . . Recycler 1 | . . . . . 1 . . Watcher 1 | . 1 . . . . . . Swarmer 9 | . 1 . 4 . 4 . . Grunt 16 | . 6 1 . 6 3 . . Sentry 8 | . . 2 . 3 3 . . Specialist 1 | . . . . . 1 . . Hunter 6 | . . . . 2 4 . . Programmer 3 | . . . . . 3 . . Best Kill Streak 10 | . 6 2 4 3 10 . . Combat Bots Only 6 | . 3 1 4 3 6 . . Max Kills in Single Turn 4 | . 1 1 3 1 4 . . Gunslinging . | . . . . . . . . Exploded 3 | . . 1 3 . 2 . . Melee 1 | . . . . . 1 . . Uniques/NPCs Destroyed . | . . . . . . . . Combat | -11 -10 -9 -9 -8 -7 -7 -7 -------- Run | Yrd Mat Mat Min Mat Fac Low Dat Hostile Shots Fired 464 | . 62 14 5 82 294 . 7 Missed 148 | . 11 4 . 19 110 . 4 Damage Taken 4347 | . 562 129 61 1002 2457 . 136 Core 1018 | . 144 18 10 139 659 . 48 Absorbed by Shields . | . . . . . . . . Redirected to Shielding 55 | . . 10 1 44 . . . Core Remaining (%) 77 | 100 42 . 93 74 . . . Volleys Fired 115 | . 37 16 4 29 29 . . Largest 4 | . 2 3 3 4 4 . . Hottest 225 | . 60 119 126 182 225 . . Shots Fired 301 | . 50 39 9 107 96 . . Gun 236 | . 50 36 8 86 56 . . Cannon 55 | . . . . 20 35 . . Launcher 10 | . . 3 1 1 5 . . Special . | . . . . . . . . Kinetic 161 | . 37 8 . 54 62 . . Thermal 95 | . . 28 8 39 20 . . Explosive 10 | . . 3 1 1 5 . . Electromagnetic 35 | . 13 . . 13 9 . . Robot Hit Streak 7 | . 5 7 1 6 7 . . Robot Miss Streak 6 | . 3 2 6 4 6 . . Penetration Max 1 | . . . . . 1 . . Secondary Targets 1 | . 1 . . . . . . Max Gunslinging Chain 1 | . 1 . . . . . . Shots Hit Robots 172 | . 32 22 2 52 62 . 2 Core Hits 99 | . 14 8 4 26 47 . . Critical Kills . | . . . . . . . . Critical Parts Destroyed . | . . . . . . . . Critical Strikes 7 | . . . . 1 6 . . Blast 6 | . . . . . 6 . . Corrupt 1 | . . . . 1 . . . Melee Attacks 12 | . . . . . 10 . 2 Impact . | . . . . . . . . Slashing 12 | . . . . . 10 . 2 Piercing . | . . . . . . . . Sneak Attacks 2 | . . . . . . . 2 Combat Hostiles . | . . . . . . . . Follow-up Attacks 2 | . . . . . 1 . 1 Damage Inflicted 4170 | . 444 284 151 870 2349 . 72 Guns 1768 | . 411 264 29 538 526 . . Cannons 890 | . . . . 288 602 . . Explosions 1166 | . 29 20 122 . 995 . . Melee 295 | . . . . . 223 . 72 Ramming 51 | . 4 . . 44 3 . . Kinetic 1444 | . 317 49 . 291 787 . . Thermal 932 | . 29 215 29 362 297 . . Explosive 1137 | . . 20 122 . 995 . . Electromagnetic 311 | . 94 . . 173 44 . . Impact . | . . . . . . . . Slashing 295 | . . . . . 223 . 72 Piercing . | . . . . . . . . Highest Corruption 4 | . . . . 4 2 2 2 Average Corruption 2 | . . . . 3 1 2 2 Corruption Purged . | . . . . . . . . Corruption Blocked . | . . . . . . . . Effects 22 | . . . . 16 4 2 . Message Errors 2 | . . . . 2 . . . Matter Fused 10 | . . . . 8 1 1 . Heat Flow Errors 2 | . . . . . 1 1 . Energy Discharges 1 | . . . . 1 . . . Parts Rejected 1 | . . . . 1 . . . Parts Fused 2 | . . . . 1 1 . . Data Loss (minor) 2 | . . . . 1 1 . . Alerts 1 | . . . . 1 . . . Weapon Failures 1 | . . . . 1 . . . Overload Shots . | . . . . . . . . Overflow Damage 55 | . . . . . 43 . 12 Projectiles 1 | . . . . . 1 . . Explosions 33 | . . . . . 33 . . Melee 21 | . . . . . 9 . 12 Knockbacks 6 | . . . . . 6 . . Impact . | . . . . . . . . Kinetic 4 | . . . . . 4 . . Secondary 2 | . . . . . 2 . . Self-Inflicted Damage 349 | . . . 17 36 296 . . Shots 8 | . . . 1 1 6 . . Rammed 10 | . . . . 10 . . . Targets Rammed 13 | . 1 . . 11 1 . . Kicked 3 | . 1 . . 1 1 . . Crushed . | . . . . . . . . Highest Temperature 601 | . 162 386 206 601 589 139 . Average Temperature 154 | . 91 125 108 196 151 76 . Received Heat Transfer 939 | . 306 54 . 315 264 . . Effects 21 | . . 1 . 15 5 . . Shutdowns 2 | . . . . 2 . . . Energy Bleed 2 | . . . . 2 . . . Interference 5 | . . . . 5 . . . Matter Decay 4 | . . . . 2 2 . . Short Circuit 3 | . . . . 2 1 . . Damage (minor) 2 | . . 1 . . 1 . . Damage (major) 2 | . . . . 2 . . . Damage (core) 1 | . . . . . 1 . . Siege Activations . | . . . . . . . . Robots Corrupted . | . . . . . . . . Combat Hostiles . | . . . . . . . . Parts Fried 1 | . . . . 1 . . . Impact Corruptions . | . . . . . . . . Robots Melted . | . . . . . . . . Combat Hostiles . | . . . . . . . . Parts Melted 1 | . . . . 1 . . . Heat Transferred 2036 | . 50 522 74 792 598 . . Parts Sabotaged . | . . . . . . . . Parts Stolen . | . . . . . . . . Parts Stripped . | . . . . . . . . Power Chain Reactions 1 | . 1 . . . . . . Alert | -11 -10 -9 -9 -8 -7 -7 -7 ------- Run | Yrd Mat Mat Min Mat Fac Low Dat Peak Influence 480 | . 298 303 141 270 480 . . Initial 125 | . . 125 39 . 54 . . Average 159 | . 184 234 129 125 170 . . Maximum Alert Level 2 | . 1 1 . 1 2 . . Low Security (%) 67 | 100 36 31 100 75 67 . . Level 1 28 | . 63 68 . 24 20 . . Level 2 4 | . . . . . 12 . . Level 3 . | . . . . . . . . Level 4 . | . . . . . . . . Level 5 . | . . . . . . . . High Security . | . . . . . . . . Max Security . | . . . . . . . . Squads Dispatched 11 | . 3 . . 3 5 . . Investigation 5 | . 2 . . 2 1 . . Extermination 2 | . . . . . 2 . . Reinforcement 4 | . 1 . . 1 2 . . Assault . | . . . . . . . . Garrison . | . . . . . . . . Intercept . | . . . . . . . . Searches Triggered . | . . . . . . . . Construction Impeded 2 | . . . . 1 1 . . Haulers Reinforced . | . . . . . . . . Active Scanning Responses . | . . . . . . . . Cargo Convoy Interrupts 1 | . . . . . 1 . . Stealth | -11 -10 -9 -9 -8 -7 -7 -7 --------- Run | Yrd Mat Mat Min Mat Fac Low Dat Distress Signals 3 | . . . . . 3 . . Communications Jammed . | . . . . . . . . Distress Signals . | . . . . . . . . Times Spotted 75 | . 15 4 1 13 39 . 3 Peak Tracking Total 15 | . 9 1 1 3 15 . 3 Tactical Retreats 12 | . 4 . . 2 6 . . Traps | -11 -10 -9 -9 -8 -7 -7 -7 ------- Run | Yrd Mat Mat Min Mat Fac Low Dat Traps Triggered 1 | . 1 . . . . . . Indirectly . | . . . . . . . . Trap Hack Attempts . | . . . . . . . . Triggered . | . . . . . . . . Disarmed . | . . . . . . . . Reprogrammed . | . . . . . . . . Reused . | . . . . . . . . Traps Extracted . | . . . . . . . . Installed . | . . . . . . . . Triggered 2 | . . . . . 2 . . Most Traps Carried 3 | . . . 3 3 . . . Objects Rigged 1 | . . . . 1 . . . Machines | -11 -10 -9 -9 -8 -7 -7 -7 ---------- Run | Yrd Mat Mat Min Mat Fac Low Dat Machines Disabled 6 | . . 2 . 2 2 . . Max in Single Turn 2 | . . 2 . 1 2 . . Machines Repaired . | . . . . . . . . Machines Dismantled . | . . . . . . . . Machines Sabotaged . | . . . . . . . . Overloaded Fab Kills . | . . . . . . . . Hacking | -11 -10 -9 -9 -8 -7 -7 -7 --------- Run | Yrd Mat Mat Min Mat Fac Low Dat Machines Accessed 7 | . 1 2 1 3 . . . Terminals 7 | . 1 2 1 3 . . . Fabricators . | . . . . . . . . Repair Stations . | . . . . . . . . Recycling Units . | . . . . . . . . Scanalyzers . | . . . . . . . . Garrison Access . | . . . . . . . . Total Hacks 17 | . 2 5 1 9 . . . Successful 9 | . . 4 1 4 . . . Failed 8 | . 2 1 . 5 . . . Catastrophic 2 | . 2 . . . . . . Database Lockouts . | . . . . . . . . Manual 17 | . 2 5 1 9 . . . Terminals 17 | . 2 5 1 9 . . . Fabricators . | . . . . . . . . Repair Stations . | . . . . . . . . Recycling Units . | . . . . . . . . Scanalyzers . | . . . . . . . . Garrison Access . | . . . . . . . . Terminal Hacks . | . . . . . . . . Fabricator Hacks . | . . . . . . . . Repair Station Hacks . | . . . . . . . . Recycling Unit Hacks . | . . . . . . . . Scanalyzer . | . . . . . . . . Garrison Access Hacks . | . . . . . . . . Unauthorized Hacks 9 | . . 4 1 4 . . . Terminals 9 | . . 4 1 4 . . . Assimilate 3 | . . 2 . 1 . . . Botnet 5 | . . 2 1 2 . . . Detonate 1 | . . . . 1 . . . Fabricators . | . . . . . . . . Repair Stations . | . . . . . . . . Recycling Units . | . . . . . . . . Scanalyzers . | . . . . . . . . Garrison Access . | . . . . . . . . Data Cores Recovered . | . . . . . . . . Used . | . . . . . . . . Hacking Detections 6 | . 1 2 . 3 . . . Full Trace Events 3 | . 1 . . 2 . . . Feedback Events . | . . . . . . . . Feedback Blocked . | . . . . . . . . Robot Schematics Acquired . | . . . . . . . . Robots Built . | . . . . . . . . Authchips . | . . . . . . . . Time . | . . . . . . . . Total Robot Build Rating . | . . . . . . . . Part Schematics Acquired . | . . . . . . . . Parts Built . | . . . . . . . . Authchips . | . . . . . . . . Time . | . . . . . . . . Total Part Build Rating . | . . . . . . . . Parts Repaired . | . . . . . . . . Time . | . . . . . . . . Parts Recycled . | . . . . . . . . Recycled Matter . | . . . . . . . . Retrieved Matter . | . . . . . . . . Retrieved Components . | . . . . . . . . Parts Scanalyzed . | . . . . . . . . Part Schematics Acquired . | . . . . . . . . Parts Damaged . | . . . . . . . . Bothacking | -11 -10 -9 -9 -8 -7 -7 -7 ------------ Run | Yrd Mat Mat Min Mat Fac Low Dat Used RIF Installer . | . . . . . . . . Robots Hacked . | . . . . . . . . Non-combat . | . . . . . . . . Combat . | . . . . . . . . Robot Hacks Applied . | . . . . . . . . Relay Couplers Released . | . . . . . . . . Fabnet Peak Effective % . | . . . . . . . . Robots Rewired . | . . . . . . . . Allies Hacked . | . . . . . . . . Hacks Repelled . | . . . . . . . . Allies | -11 -10 -9 -9 -8 -7 -7 -7 -------- Run | Yrd Mat Mat Min Mat Fac Low Dat Total Allies 1 | . . 1 . . . . . Largest Group 1 | . . 1 . . . . . Highest-Rated Group 10 | . . 10 . . . . . Highest-Rated Ally 10 | . . 10 . . . . . Total Orders . | . . . . . . . . Ally Attacks . | . . . . . . . . Total Damage . | . . . . . . . . Kills . | . . . . . . . . Allies Corrupted . | . . . . . . . . Allies Melted . | . . . . . . . . Intel | -11 -10 -9 -9 -8 -7 -7 -7 ------- Run | Yrd Mat Mat Min Mat Fac Low Dat Robot Analysis Total . | . . . . . . . . Derelict Logs Recovered 1 | . . . 1 . . . . Drone Launches . | . . . . . . . . Drone Recoveries . | . . . . . . . . Exploration | -11 -10 -9 -9 -8 -7 -7 -7 ------------- Run | Yrd Mat Mat Min Mat Fac Low Dat Turns Passed 3528 | 67 297 418 432 846 1200 214 54 Spaces Moved 2453 | 45 159 265 435 530 798 179 42 Core 211 | 1 1 . . 2 205 . 2 Treads 100 | . . . . 100 . . . Legs 1130 | 44 158 122 . 240 566 . . Wheels 678 | . . 55 435 188 . . . Hover 246 | . . . . . 27 179 40 Flight 88 | . . 88 . . . . . Fastest Speed 50 | 50 120 95 95 80 50 120 120 Average Speed 120 | 118 122 127 95 124 129 120 123 Slowest Speed 650 | 120 200 192 95 450 650 120 200 Overloaded Moves . | . . . . . . . . Propulsion Burnouts . | . . . . . . . . Robots Hopped . | . . . . . . . . Cave-ins Triggered . | . . . . . . . . Exploration Rate (%) 29 | 3 24 14 60 28 20 23 62 Regions Visited 7 Branch Regions 3 Pre-discovered Areas . | . . . . . . . . Known Exits Taken . | . . . . . . . . Unknown Exits Taken 7 | 1 1 1 1 1 1 1 . Scrap Searched . | . . . . . . . . Spaces Dug 9 | . . . . 9 . . . Terrain Destroyed 155 | . 6 28 7 11 103 . . Melee . | . . . . . . . . Projectile 12 | . . . . 2 10 . . AOE 143 | . 6 28 7 9 93 . . Terrain Rammed . | . . . . . . . . Walls Destroyed . | . . . . . . . . Machines Disabled . | . . . . . . . . Actions | -11 -10 -9 -9 -8 -7 -7 -7 --------- Run | Yrd Mat Mat Min Mat Fac Low Dat Total 2811 | 58 213 318 446 663 892 178 43 Wait 37 | . 2 . . 34 1 . . Move 2446 | 44 158 264 434 529 797 178 42 Hop . | . . . . . . . . Pick Up 67 | 8 5 13 4 17 20 . . Fast Attach 5 | . . 2 . 3 . . . Attach 66 | 6 6 12 1 18 23 . . Detach 7 | . . 1 1 3 2 . . Swap 2 | . . . . 2 . . . Drop 43 | . 4 10 2 17 10 . . Fire 115 | . 37 16 4 29 29 . . Melee 10 | . . . . . 9 . 1 Ram 10 | . . . . 10 . . . Kick 3 | . 1 . . 1 1 . . Crush . | . . . . . . . . Escape Stasis . | . . . . . . . . Rewire . | . . . . . . . . Trap . | . . . . . . . . Miscellaneous . | . . . . . . . . Route ------- -11/Scrapyard -10/Materials -9/Materials -9/Mines -8/Materials -7/Factory -7/Lower Caves -7/Data Miner (discovered 1 exit: [*Pro]) History --------- Turn | Location | Event 5 | -11/Scrapyard | Discovered new exit (range 16) 68 | -11/Scrapyard | Entered Materials 234 | -10/Materials | Core integrity fell below 50% 293 | -10/Materials | Discovered new exit (range 6) 365 | -10/Materials | Entered another Materials area 365 | -9/Materials | Evolved 2 slots: Utility x1, Weapon x1 594 | -9/Materials | Discovered new exit (range 9) 783 | -9/Materials | Entered Mines 945 | -9/Mines | Learned Materials trap positions 994 | -9/Mines | Discovered new exit (range 5) 1073 | -9/Mines | Found a hidden stash of uninstalled traps 1098 | -9/Mines | Build established: Scavenger-Tank 1215 | -9/Mines | Entered Materials 1215 | -8/Materials | Evolved 2 slots: Utility x1, Weapon x1 1216 | -8/Materials | Loaded intel: 29 trap records 1489 | -8/Materials | Lost 3 parts (1n1u1w) 2010 | -8/Materials | Discovered new exit (range 16) 2061 | -8/Materials | Entered Factory 2061 | -7/Factory | Evolved 2 slots: Propulsion x1, Utility x1 2950 | -7/Factory | Cargo convoy interrupted 3023 | -7/Factory | Core integrity fell below 50% 3030 | -7/Factory | Lost 9 parts (1p1n2u5w) 3140 | -7/Factory | Discovered new exit (range 16) 3161 | -7/Factory | Core integrity fell below 20% 3261 | -7/Factory | Entered Lower Caves 3269 | -7/Lower Caves | Build established: Mutant 3472 | -7/Lower Caves | A Derelict revealed a hidden shortcut to meet someone special 3472 | -7/Lower Caves | A Derelict revealed a hidden shortcut to a safe place 3475 | -7/Lower Caves | Entered Data Miner 3475 | -7/Data Miner | Discovered new exit (range 6) 3498 | -7/Data Miner | Met Data Miner 3528 | -7/Data Miner | Data Conduit disabled 3529 | -7/Data Miner | Destroyed by Enhanced Grunt with Neutron Cannon Last Messages --------------- MV-IHF(g) disappears into a concealed tunnel. LOCATION=UNKNOWN GOAL=ESCAPE 03475_ EXIT=FOUND Data Miner: I'm the Data Miner, and I've been given permission to aid you with a little knowledge. Find what you need on the terminals, then be on your way because masking your presence is increasingly difficult. [Achievement: The Oracle] 03516_ Sneak attack on Data Miner. 03516_ Destroyed Lgt. Angular Momentum Engine. 03516_ Sneak attack on Data Miner. 03516_ Chainsword follow-up attack on Data Miner. 03516_ Data Miner disappears through a trap door. 03525_ Gravmag System destroyed. 03528_ Data Conduit disabled. Map ----- +----------------------------------------------------+ | | | | | | | | | | | | | | | | | | | | | | | ???????????????????????????????????????? | | ???????????????????????????????????????? | | ???????????????????????????????????????? | | ???????????????????????????????????????? | | ?????????????????????????????????????### | | ??????###############??????????????### | | ??????""""""""""""""######?#??????## | | ?????"""""""" """"""""# # ###### < # | | ????""""""""" g | | ????"""""" g g | | ????"""""" | | ????""""" | | ????"""""" | | ????"""""" """""""""""""""" | | ????""""""" @ """"############## | | ?????"""""" """""###????????????? | | ??????"""""" "#####??????????????? | | ??????######"## "#??????????????????? | | ???????????#"### "#??????????????????? | | ???????????#"#?# "#??????????????????? | | ???????????#"?? "#??????????????????? | | ??????????????# "#??????????????????? | | ?????????????? "#??????????????????? | | ??????????????## "#??????????????????? | | ???????????????# "#??????????????????? | | ???????????????? "???????????????????? | | ????????????????? "???????????????????? | | ????????????????? "???????????????????? | | ????????????????? ???????????????????? | | ????????????????? ?????????????????????? | | ???????????????????????????????????????? | | ???????????????????????????????????????? | | ???????????????????????????????????????? | | ???????????????????????????????????????? | | ???????????????????????????????????????? | | ???????????????????????????????????????? | | ???????????????????????????????????????? | | ???????????????????????????????????????? | | ???????????????????????????????????????? | +----------------------------------------------------+ Best States ------------- Heat Dissipation 34 Energy Generation 16 Energy Capacity 290 Matter Stores 300 Matter Capacity 300 Sight Range 16 Terrain Scan Range 16 Terrain Scan Density 10 Armor Coverage 300 Propulsion Shielding 33 Evasion (%) 55 Recoil Reduction 4 Item Schematics ----------------- None Robot Schematics ------------------ None Fabricated ------------ Nothing Alien Tech Used ----------------- None Achievements -------------- The Oracle Challenges ------------ None Game ------ Seed TiamatRelayDoomcannon Manual? 0 Play Time 00:35:49 Cumulative 8.5 hours Start 2024.12.08 @ 11:23:07 End 2024.12.08 @ 12:51:45 Sessions 1 Manual Loads 0 Difficulty Rogue Special Mode None Game No. 33 Rogue 32 Adventurer 1 Explorer 0 Win Type - Total 0 Types 0/0/0/0/0/0/0/0/0 Lore% 4 Gallery% 14 Achievement% 15 Wizard Run 0 Options --------- Layout 1 ASCII 0 Keyboard 0 Movement Arrows Keybinds 0 Fullscreen 1 Font 24/Smallcaps Map View 50x35 Zoom Use 0% Tactical HUD 1 Map Filters NONE Filters NONE Steam 1 RUN: 55ddd0a0-539e-4a5e-9334-9f3f487ee431